[Event "Turkish Second League 2019"]
[Site "Konya"]
[Date "2019.07.23"]
[Round "2"]
[White "Boz, Fatih Emre"]
[Black "Yigit, Ahmet Yasir"]
[Result "1/2-1/2"]
[ECO "C26"]
[WhiteElo "1854"]
[BlackElo "1962"]
[Annotator "NA"]
[PlyCount "89"]
[EventDate "2019.07.22"]
[EventType "team-tourn"]
[EventCountry "TUR"]
[SourceTitle "playchess.com"]
[Source "ChessBase"]
[SourceQuality "1"]
[TimeControl "5400+30"]

1. e4 {[%emt 0:00:30]} e5 {[%emt 0:00:30]} 2. Nc3 {[%emt 0:00:30]} Nf6 {[%emt 0:00:00]} 3. g3 {[%emt 0:00:30]} c6 {[%emt 0:01:00]} 4. Bg2 {[%emt 0:03:30]} d5 {[%emt 0:00:00]} 5. d3 {[%emt 0:09:30]} Bb4 {[%emt 0:01:00]} (5... dxe4 6. dxe4 Qxd1+ 7. Nxd1 Be6 8. f3 Na6 9. a3 Nd7 10. Be3 Bc5 11. Ne2 Ke7 12. Kf2 {½-½ (33) Lu,S (2620)-Wang,Y (2706) China 2017}) 6. Bd2 {[%emt 0:06:30] C26: Vienna Game: 2...Nf6, sidelines} O-O {[%emt 0:01:30]} 7. h3 {[%emt 0:02:30]} Re8 {[%emt 0:01:30]} 8. a3 {[%emt 0:12:30]} Bf8 $146 {[%emt 0:06:30]} ({Predecessor:} 8... Be7 9. Nf3 dxe4 10. Nxe4 Qc7 11. Nc3 e4 12. Bf4 {0-1 (28) Martin Dinares,L (1883)-Marin Benito,C (2036) Platja d'Aro 2015}) 9. Nf3 {[%emt 0:00:30]} d4 {[%emt 0:09:30]} 10. Ne2 {[%emt 0:01:30]} c5 {[%emt 0:00:30]} 11. O-O {[%emt 0:00:00]} c4 {[%emt 0:00:30]} 12. Ne1 {[%emt 0:17:00]} cxd3 {[%emt 0:01:30]} 13. cxd3 {[%emt 0:01:30]} Nbd7 {[%emt 0:01:30]} 14. f4 {[%emt 0:00:30]} Qb6 {[%emt 0:05:30]} 15. Rb1 {[%emt 0:07:30]} a5 {[%emt 0:01:30]} 16. Kh2 {[%emt 0:05:30]} Bd6 {[%emt 0:00:30]} 17. Nf3 {[%emt 0:03:30]} exf4 {[%emt 0:01:30]} 18. Bxf4 {[%emt 0:00:30]} Bxf4 {[%emt 0:00:30]} 19. Nxf4 {[%emt 0:00:30]} Ne5 {[%emt 0:06:30]} 20. Nxe5 {[%emt 0:07:07]} Rxe5 {[%emt 0:00:30]} 21. Qf3 {[%emt 0:00:00]} Be6 {[%emt 0:03:30]} 22. b4 {[%emt 0:04:44]} axb4 {[%emt 0:02:30]} 23. Rxb4 {[%emt 0:00:54]} Qd6 {[%emt 0:07:30]} 24. Nxe6 $14 {[%emt 0:03:21]} Rxe6 {[%emt 0:02:30]} 25. Rxb7 {[%emt 0:00:11]} Qxa3 {[%emt 0:02:30]} 26. Rfb1 {[%emt 0:00:42]} Ree8 {[%emt 0:08:30]} 27. R1b5 {[%emt 0:01:57]} Qd6 {[%emt 0:07:30]} 28. R7b6 {[%emt 0:03:36]} Qf8 {[%emt 0:00:30]} 29. Rxf6 {[%emt 0:04:18]} gxf6 {[%emt 0:00:30]} 30. Qxf6 {[%emt 0:00:02]} h6 {[%emt 0:00:30]} 31. Qxd4 {[%emt 0:03:29]} Red8 {[%emt 0:00:30]} 32. Qc4 {[%emt 0:00:32]} Rac8 {[%emt 0:00:30]} 33. Qb3 {[%emt 0:00:24]} Qg7 {[%emt 0:00:30]} 34. e5 {[%emt 0:00:40]} Qg6 {[%emt 0:01:30]} 35. Be4 {[%emt 0:00:46]} Qg5 {[%emt 0:00:30]} 36. Rb7 {[%emt 0:00:13]} Qd2+ {[%emt 0:01:30]} 37. Bg2 {[%emt 0:00:05]} Qf2 {[%emt 0:00:00]} 38. Rb4 {[%emt 0:00:45]} Rc2 {[%emt 0:01:00]} 39. Rg4+ {[%emt 0:00:03]} Kh8 {[%emt 0:00:00]} 40. Qb7 {[%emt 0:00:09]} Rc1 {[%emt 0:01:00]} 41. h4 {[%emt 0:00:45]} Rg8 {[%emt 0:02:30]} 42. Rxg8+ {[%emt 0:01:28]} Kxg8 {[%emt 0:00:30]} 43. Qe4 {[%emt 0:00:05]} Rc2 {[%emt 0:00:30]} 44. e6 {[%emt 0:00:27]} Kg7 {[%emt 0:05:23]} 45. Qe5+ {[%emt 0:00:22]} 1/2-1/2

[Event "Turkish Second League 2019"]
[Site "Konya"]
[Date "2019.07.23"]
[Round "2"]
[White "Kara, Gulce Nehir"]
[Black "Ayazmali, Gizem"]
[Result "1-0"]
[ECO "B51"]
[WhiteElo "1767"]
[BlackElo "1767"]
[Annotator "NA"]
[PlyCount "129"]
[EventDate "2019.07.22"]
[EventType "team-tourn"]
[EventCountry "TUR"]
[SourceTitle "playchess.com"]
[Source "ChessBase"]
[SourceQuality "1"]
[TimeControl "5400+30"]

1. e4 {[%emt 0:01:30]} c5 {[%emt 0:00:30]} 2. Nf3 {[%emt 0:00:00]} d6 {[%emt 0:00:00]} 3. Bb5+ {[%emt 0:00:00]} Nd7 {[%emt 0:00:00]} 4. O-O {[%emt 0:02:30]} a6 {[%emt 0:00:30]} 5. Bxd7+ {[%emt 0:01:30]} Bxd7 {[%emt 0:00:30]} 6. Re1 {[%emt 0:05:30]} e6 {[%emt 0:04:30]} 7. c3 {[%emt 0:02:30]} Be7 {[%emt 0:01:30]} 8. d4 {[%emt 0:02:30]} c4 {[%emt 0:16:30]} 9. e5 {[%emt 0:09:30]} d5 {[%emt 0:07:30]} 10. h3 {[%emt 0:09:30]} h5 {[%emt 0:01:30]} 11. Nh2 {[%emt 0:04:30]} b5 {[%emt 0:27:30]} 12. f4 {[%emt 0:07:30]} g6 {[%emt 0:11:30]} 13. Qf3 {[%emt 0:07:30]} h4 {[%emt 0:07:30]} 14. Ng4 {[%emt 0:05:30]} b4 {[%emt 0:00:57]} 15. Bd2 {[%emt 0:09:30]} Ba4 {[%emt 0:03:18]} 16. cxb4 {[%emt 0:04:30]} Bc2 {[%emt 0:02:02]} 17. a3 {[%emt 0:04:30]} Be4 {[%emt 0:01:07]} 18. Qf2 {[%emt 0:00:30]} Bf5 {[%emt 0:00:50]} 19. Nh2 {[%emt 0:02:47]} Nh6 {[%emt 0:01:22]} 20. Nc3 {[%emt 0:03:58]} Qd7 {[%emt 0:03:52]} 21. Nd1 {[%emt 0:04:53]} Bd3 {[%emt 0:01:21]} 22. Ne3 {[%emt 0:01:12]} Rb8 {[%emt 0:01:26]} 23. Bc3 {[%emt 0:01:15]} Nf5 {[%emt 0:01:56]} 24. Nxf5 {[%emt 0:01:10]} Bxf5 {[%emt 0:00:09]} 25. Ng4 {[%emt 0:02:10]} Qd8 {[%emt 0:01:36]} 26. Qe2 {[%emt 0:03:37]} g5 {[%emt 0:01:36]} 27. fxg5 {[%emt 0:01:09]} Bxg5 {[%emt 0:00:03]} 28. Bd2 {[%emt 0:01:32]} Bxg4 {[%emt 0:00:50]} 29. hxg4 {[%emt 0:00:56]} Rg8 {[%emt 0:01:52]} 30. Rf1 {[%emt 0:00:45]} Bxd2 {[%emt 0:00:29]} 31. Qxd2 {[%emt 0:00:05]} Rxg4 {[%emt 0:00:34]} 32. Qh6 {[%emt 0:00:56]} Qg5 {[%emt 0:00:12]} 33. Qxg5 {[%emt 0:00:58]} Rxg5 {[%emt 0:00:01]} 34. Kh2 {[%emt 0:00:03]} a5 {[%emt 0:00:10]} 35. Kh3 {[%emt 0:00:30]} Rg7 {[%emt 0:00:40]} 36. Kxh4 {[%emt 0:00:50]} Ke7 {[%emt 0:00:09]} 37. g4 {[%emt 0:00:00]} axb4 {[%emt 0:01:29]} 38. axb4 {[%emt 0:00:00]} Rxb4 {[%emt 0:00:00]} 39. Ra7+ {[%emt 0:00:14]} Kd8 {[%emt 0:00:24]} 40. Rf2 {[%emt 0:01:39]} Rb3 {[%emt 0:00:37]} 41. Ra8+ {[%emt 0:00:20]} Kd7 {[%emt 0:01:11]} 42. Rf8 {[%emt 0:00:27]} Ke7 {[%emt 0:00:14]} 43. Ra8 {[%emt 0:00:14]} Rh7+ {[%emt 0:00:23]} 44. Kg5 {[%emt 0:00:35]} Rg7+ {[%emt 0:00:30]} 45. Kh4 {[%emt 0:00:00]} Rh7+ {[%emt 0:00:00]} 46. Kg5 {[%emt 0:00:12]} Rb7 {[%emt 0:00:01]} 47. Rc8 {[%emt 0:01:26]} Rh1 {[%emt 0:00:49]} 48. Rd2 {[%emt 0:00:35]} Rb1 {[%emt 0:00:40]} 49. Kh6 {[%emt 0:00:25]} R1xb2 {[%emt 0:01:30]} 50. Rxb2 {[%emt 0:00:50]} Rxb2 {[%emt 0:00:01]} 51. g5 {[%emt 0:00:12]} Rb7 {[%emt 0:00:54]} 52. Kg7 {[%emt 0:00:25]} Kd7 {[%emt 0:00:35]} 53. Rc5 {[%emt 0:00:33]} Kd8 {[%emt 0:00:37]} 54. Kf8 {[%emt 0:00:23]} Rc7 {[%emt 0:00:28]} 55. Rxc7 {[%emt 0:00:53]} Kxc7 {[%emt 0:00:30]} 56. Kxf7 {[%emt 0:00:30]} c3 {[%emt 0:00:30]} 57. g6 {[%emt 0:00:00]} c2 {[%emt 0:00:00]} 58. g7 {[%emt 0:00:00]} c1=Q {[%emt 0:00:02]} 59. g8=Q {[%emt 0:00:00]} Qf4+ {[%emt 0:01:23]} 60. Kxe6 {[%emt 0:00:04]} Qxd4 {[%emt 0:00:20]} 61. Qf7+ {[%emt 0:01:41]} Kb6 {[%emt 0:00:19]} 62. Qe7 {[%emt 0:00:40]} Qc5 {[%emt 0:00:51]} 63. Qd8+ {[%emt 0:00:35]} Ka6 {[%emt 0:00:41]} 64. Qd6+ {[%emt 0:00:14]} Kb5 {[%emt 0:00:50]} 65. Qxd5 {[%emt 0:00:08]} 1-0

[Event "Turkish Second League 2019"]
[Site "Konya"]
[Date "2019.07.23"]
[Round "2"]
[White "Zuberoglu, Ibrahim Berk"]
[Black "Ozcoban, Kadir"]
[Result "0-1"]
[ECO "A26"]
[WhiteElo "1737"]
[BlackElo "1850"]
[Annotator "NA"]
[PlyCount "104"]
[EventDate "2019.07.22"]
[EventType "team-tourn"]
[EventCountry "TUR"]
[SourceTitle "playchess.com"]
[Source "ChessBase"]
[SourceQuality "1"]
[TimeControl "5400+30"]

1. Nf3 {[%emt 0:00:30]} Nf6 {[%emt 0:00:30]} 2. c4 {[%emt 0:00:30]} g6 {[%emt 0:00:30]} 3. g3 {[%emt 0:00:00]} Bg7 {[%emt 0:00:00]} 4. Bg2 {[%emt 0:00:00]} O-O {[%emt 0:04:00]} 5. O-O {[%emt 0:00:30]} d6 {[%emt 0:00:30]} 6. Nc3 {[%emt 0:00:30]} Nc6 {[%emt 0:00:00]} 7. d3 {[%emt 0:02:30]} e5 {[%emt 0:00:00]} 8. Rb1 {[%emt 0:00:00]} Nh5 {[%emt 0:03:30]} 9. b4 {[%emt 0:05:00]} f5 {[%emt 0:03:30]} 10. Nd5 {[%emt 0:13:30]} h6 {[%emt 0:10:30]} 11. Nd2 {[%emt 0:03:30]} Nd4 {[%emt 0:12:30]} 12. e3 {[%emt 0:11:30]} Ne6 {[%emt 0:02:30]} 13. Ba3 {[%emt 0:03:30]} a6 {[%emt 0:11:30]} 14. c5 {[%emt 0:08:30]} Nf6 {[%emt 0:08:30]} 15. Qb3 {[%emt 0:00:30]} Kh7 {[%emt 0:02:30]} 16. Rfc1 {[%emt 0:17:30]} f4 {[%emt 0:01:30]} 17. cxd6 {[%emt 0:12:07]} cxd6 {[%emt 0:01:30]} 18. Nxf6+ {[%emt 0:02:54]} Qxf6 {[%emt 0:04:30]} 19. Ne4 {[%emt 0:00:57]} Qe7 {[%emt 0:00:00]} 20. b5 {[%emt 0:01:52]} Rd8 {[%emt 0:00:00]} 21. b6 {[%emt 0:05:23]} Bf8 {[%emt 0:00:30]} 22. Qd5 {[%emt 0:05:53]} Rb8 {[%emt 0:04:30]} 23. d4 {[%emt 0:01:48]} exd4 {[%emt 0:03:30]} 24. exd4 {[%emt 0:00:02]} Qg7 {[%emt 0:03:30]} 25. Bh3 {[%emt 0:01:13]} Nxd4 {[%emt 0:01:30]} 26. Rc7 {[%emt 0:00:36]} Bxh3 {[%emt 0:02:28]} 27. Rxg7+ {[%emt 0:02:21]} Bxg7 {[%emt 0:00:30]} 28. Nd2 {[%emt 0:00:13]} Re8 {[%emt 0:01:03]} 29. Bb2 {[%emt 0:00:35]} Be6 {[%emt 0:02:33]} 30. Qxd6 {[%emt 0:00:55]} Rbd8 {[%emt 0:00:29]} 31. Qb4 {[%emt 0:00:00]} Bf5 {[%emt 0:03:09]} 32. Rf1 {[%emt 0:00:33]} Nc6 {[%emt 0:02:58]} 33. Qxf4 {[%emt 0:00:34]} Bxb2 {[%emt 0:00:55]} 34. Nc4 {[%emt 0:00:09]} Rd4 {[%emt 0:00:58]} 35. Qf3 {[%emt 0:00:49]} Rd3 {[%emt 0:02:12]} 36. Qg2 {[%emt 0:00:29]} Bd4 {[%emt 0:00:35]} 37. Nd6 {[%emt 0:00:18]} Re2 {[%emt 0:03:47]} 38. Nxf5 {[%emt 0:00:40]} Rxf2 {[%emt 0:01:52]} 39. Nxd4 {[%emt 0:00:59]} Rxg2+ {[%emt 0:00:30]} 40. Kxg2 {[%emt 0:00:00]} Rxd4 {[%emt 0:00:07]} 41. Rf7+ {[%emt 0:00:14]} Kg8 {[%emt 0:00:30]} 42. Rxb7 {[%emt 0:00:00]} Rb4 {[%emt 0:00:02]} 43. a3 {[%emt 0:00:06]} Rb3 {[%emt 0:00:56]} 44. a4 {[%emt 0:00:40]} a5 {[%emt 0:00:05]} 45. Kh3 {[%emt 0:00:31]} Rb4 {[%emt 0:00:34]} 46. g4 {[%emt 0:00:41]} Rb3+ {[%emt 0:01:05]} 47. Kh4 {[%emt 0:00:02]} Kf8 {[%emt 0:00:18]} 48. Rh7 {[%emt 0:01:42]} Rxb6 {[%emt 0:00:42]} 49. Rxh6 {[%emt 0:00:30]} Kg7 {[%emt 0:00:00]} 50. Kg5 {[%emt 0:00:15]} Nd4 {[%emt 0:00:03]} 51. Rh3 {[%emt 0:00:25]} Ne6+ {[%emt 0:01:01]} 52. Kh4 {[%emt 0:00:02]} g5+ {[%emt 0:00:08]} 0-1

[Event "Turkish Second League 2019"]
[Site "Konya"]
[Date "2019.07.23"]
[Round "2"]
[White "Ciblakbas, Sertan"]
[Black "Zengin, Hande"]
[Result "1-0"]
[ECO "A24"]
[WhiteElo "1729"]
[BlackElo "1661"]
[Annotator "NA"]
[PlyCount "43"]
[EventDate "2019.07.22"]
[EventType "team-tourn"]
[EventCountry "TUR"]
[SourceTitle "playchess.com"]
[Source "ChessBase"]
[SourceQuality "1"]
[TimeControl "5400+30"]

1. c4 {[%emt 0:00:30]} Nf6 {[%emt 0:02:30]} 2. Nc3 {[%emt 0:01:30]} g6 {[%emt 0:04:30]} 3. g3 {[%emt 0:00:00]} Bg7 {[%emt 0:02:30]} 4. Bg2 {[%emt 0:00:00]} e5 {[%emt 0:06:30]} 5. Nf3 {[%emt 0:07:30]} d6 {[%emt 0:00:30]} 6. d4 {[%emt 0:04:30]} Qe7 {[%emt 0:09:30]} 7. Bg5 {[%emt 0:10:30]} c6 {[%emt 0:06:30]} 8. dxe5 {[%emt 0:31:30]} dxe5 {[%emt 0:00:00]} 9. Nd2 {[%emt 0:01:30]} Qc7 {[%emt 0:20:00]} 10. Nde4 {[%emt 0:13:30]} Nxe4 {[%emt 0:05:30]} 11. Nxe4 {[%emt 0:01:30]} O-O {[%emt 0:02:30]} 12. Qd6 {[%emt 0:01:30]} Qxd6 {[%emt 0:07:30]} 13. Nxd6 {[%emt 0:00:30]} f6 {[%emt 0:00:30]} 14. Be3 {[%emt 0:02:30]} Na6 {[%emt 0:07:30]} 15. O-O {[%emt 0:04:54]} Rd8 {[%emt 0:03:39]} 16. Nxc8 {[%emt 0:00:33]} Rdxc8 {[%emt 0:00:25]} 17. Rfd1 {[%emt 0:01:14]} Rc7 {[%emt 0:01:13]} 18. a3 {[%emt 0:01:19]} c5 {[%emt 0:02:19]} 19. Rd6 {[%emt 0:02:10]} Rb8 {[%emt 0:06:30]} 20. Rad1 {[%emt 0:01:47]} b6 {[%emt 0:05:49]} 21. Rd7 {[%emt 0:01:43]} Rbc8 {[%emt 0:03:00]} 22. Bb7 {[%emt 0:00:26]} 1-0

[Event "Turkish Second League 2019"]
[Site "Konya"]
[Date "2019.07.23"]
[Round "2"]
[White "Yildirim, Okan"]
[Black "Abdullahoglu, Diren Can"]
[Result "1-0"]
[ECO "B80"]
[WhiteElo "1657"]
[BlackElo "1889"]
[Annotator "NA"]
[PlyCount "51"]
[EventDate "2019.07.22"]
[EventType "team-tourn"]
[EventCountry "TUR"]
[SourceTitle "playchess.com"]
[Source "ChessBase"]
[SourceQuality "1"]
[TimeControl "5400+30"]

1. e4 {[%emt 0:00:30]} c5 {[%emt 0:00:30]} 2. Nf3 {[%emt 0:00:30]} e6 {[%emt 0:02:30]} 3. d4 {[%emt 0:00:00]} cxd4 {[%emt 0:00:30]} 4. Nxd4 {[%emt 0:00:00]} a6 {[%emt 0:01:30]} 5. Nc3 {[%emt 0:00:30]} d6 {[%emt 0:00:30]} 6. g3 {[%emt 0:00:30]} Nf6 {[%emt 0:01:30]} 7. Bg2 {[%emt 0:00:30]} Qc7 {[%emt 0:12:30]} 8. O-O {[%emt 0:03:30]} Bd7 {[%emt 0:07:30] B80: Sicilian Scheveningen: 6 g3 and 6 Be3, including English Attack} 9. f4 {[%emt 0:08:30]} Nc6 {[%emt 0:02:30]} 10. Nb3 {[%emt 0:00:30]} Qb6+ $146 {[%emt 0:02:30]} ({Predecessor:} 10... Be7 11. Kh1 O-O 12. g4 h6 13. Be3 Rac8 14. h4 d5 15. g5 hxg5 16. hxg5 Nxe4 17. Nxe4 dxe4 18. Bxe4 f5 19. gxf6 Rxf6 20. Rf2 {½-½ (54) Ponomariov,R (2756)-Dubov,D (2624) Tromsoe 2013}) 11. Kh1 {[%emt 0:00:30]} h5 {[%emt 0:00:30]} 12. h3 {[%emt 0:02:30]} O-O-O {[%emt 0:09:30]} 13. Qe2 {[%emt 0:07:30]} Ng4 {[%emt 0:04:30]} 14. a4 {[%emt 0:04:30]} Nd4 {[%emt 0:07:30]} 15. Qc4+ {[%emt 0:01:30]} Nc6 {[%emt 0:02:30]} 16. a5 {[%emt 0:00:00]} Qa7 {[%emt 0:02:30]} 17. Na4 {[%emt 0:01:00]} Ne3 {[%emt 0:04:30]} 18. Bxe3 {[%emt 0:04:30]} Qxe3 {[%emt 0:00:30]} 19. Nb6+ {[%emt 0:00:00]} Kb8 $18 {[%emt 0:02:30]} 20. Rf3 {[%emt 0:00:00]} d5 {[%emt 0:04:30]} 21. Nxd7+ {[%emt 0:00:30]} Rxd7 {[%emt 0:00:30]} 22. Qxc6 {[%emt 0:00:30]} Qxf3 {[%emt 0:00:30]} 23. Qxd7 {[%emt 0:00:30]} Qxg3 {[%emt 0:05:30]} 24. exd5 {[%emt 0:08:30]} Qxf4 {[%emt 0:03:30]} 25. Qd8+ {[%emt 0:01:30]} Ka7 {[%emt 0:00:30]} 26. Qb6+ {[%emt 0:00:30]} 1-0

[Event "Turkish Second League 2019"]
[Site "Konya"]
[Date "2019.07.23"]
[Round "2"]
[White "Ozsayin, Elif"]
[Black "Abdimanoglu, Beste Basak"]
[Result "1/2-1/2"]
[ECO "A49"]
[WhiteElo "1642"]
[BlackElo "1898"]
[Annotator "NA"]
[PlyCount "61"]
[EventDate "2019.07.22"]
[EventType "team-tourn"]
[EventCountry "TUR"]
[SourceTitle "playchess.com"]
[Source "ChessBase"]
[SourceQuality "1"]
[TimeControl "5400+30"]

1. d4 {[%emt 0:00:30]} g6 {[%emt 0:00:30]} 2. Nf3 {[%emt 0:00:30]} Bg7 {[%emt 0:00:00]} 3. g3 {[%emt 0:00:30]} d6 {[%emt 0:01:00]} 4. Bg2 {[%emt 0:00:00]} Nf6 {[%emt 0:00:30]} 5. O-O {[%emt 0:01:00]} O-O {[%emt 0:00:30]} 6. b3 {[%emt 0:00:30]} Nc6 {[%emt 0:06:30]} 7. Bb2 {[%emt 0:01:30]} e6 {[%emt 0:01:30]} 8. c4 {[%emt 0:04:30]} a6 {[%emt 0:02:30]} 9. Nc3 {[%emt 0:02:30]} Rb8 {[%emt 0:03:30]} 10. Rc1 {[%emt 0:04:30]} Nd7 {[%emt 0:07:30]} 11. e3 {[%emt 0:14:30]} Ne7 {[%emt 0:08:30]} 12. Qc2 {[%emt 0:09:30]} f5 {[%emt 0:19:30]} 13. Rfd1 {[%emt 0:07:30]} Nf6 {[%emt 0:05:30]} 14. c5 {[%emt 0:26:30]} d5 {[%emt 0:02:30]} 15. Ne5 {[%emt 0:04:21]} Nc6 {[%emt 0:08:30]} 16. f4 $14 {[%emt 0:03:20]} Ne4 {[%emt 0:13:13]} 17. Ne2 {[%emt 0:01:19]} Qe8 {[%emt 0:03:51]} 18. a3 {[%emt 0:01:43]} Bd7 {[%emt 0:02:49]} 19. b4 {[%emt 0:01:44]} Nxe5 {[%emt 0:00:07]} 20. dxe5 {[%emt 0:00:07]} Ba4 {[%emt 0:00:10]} 21. Qd3 {[%emt 0:01:03]} Bxd1 {[%emt 0:01:09]} 22. Rxd1 {[%emt 0:00:20]} c6 {[%emt 0:04:54]} 23. Bd4 {[%emt 0:02:10]} Ra8 {[%emt 0:01:00]} 24. a4 {[%emt 0:02:52]} Qe7 {[%emt 0:01:53]} 25. a5 {[%emt 0:00:44]} Rad8 {[%emt 0:00:41]} 26. Bb2 {[%emt 0:01:27]} Rfe8 {[%emt 0:01:13]} 27. Nd4 {[%emt 0:00:41]} Ra8 {[%emt 0:00:52]} 28. Rc1 {[%emt 0:00:54]} Qf7 {[%emt 0:00:46]} 29. Nf3 {[%emt 0:01:40]} Qe7 {[%emt 0:00:18]} 30. Nd4 {[%emt 0:00:33]} Qf7 {[%emt 0:00:15]} 31. Nf3 {[%emt 0:00:05]} 1/2-1/2

[Event "Turkish Second League 2019"]
[Site "Konya"]
[Date "2019.07.23"]
[Round "2"]
[White "Cetinkaya, Umut Can"]
[Black "Turkmen, Yusuf Cagan"]
[Result "1/2-1/2"]
[ECO "B40"]
[WhiteElo "1639"]
[BlackElo "1796"]
[Annotator "NA"]
[PlyCount "119"]
[EventDate "2019.07.22"]
[EventType "team-tourn"]
[EventCountry "TUR"]
[SourceTitle "playchess.com"]
[Source "ChessBase"]
[SourceQuality "1"]
[TimeControl "5400+30"]

1. e4 {[%emt 0:00:30]} c5 {[%emt 0:00:30]} 2. Nf3 {[%emt 0:00:30]} e6 {[%emt 0:00:30]} 3. c4 {[%emt 0:00:00]} Nc6 {[%emt 0:01:30]} 4. d4 {[%emt 0:00:00]} cxd4 {[%emt 0:13:30]} 5. Nxd4 {[%emt 0:00:30]} Nxd4 {[%emt 0:00:30]} 6. Qxd4 {[%emt 0:00:30]} Ne7 {[%emt 0:00:30]} 7. Nc3 {[%emt 0:00:30]} Nc6 {[%emt 0:00:30]} 8. Qd3 {[%emt 0:00:30]} Qc7 {[%emt 0:09:30]} 9. Nb5 {[%emt 0:15:30]} Qb8 {[%emt 0:03:30]} 10. Be2 {[%emt 0:01:30]} Be7 {[%emt 0:06:30]} 11. O-O {[%emt 0:14:30]} a6 {[%emt 0:04:30]} 12. Nc3 {[%emt 0:08:30]} Ne5 {[%emt 0:11:30]} 13. Qg3 {[%emt 0:05:30]} Ng6 {[%emt 0:07:30]} 14. Qxb8 {[%emt 0:19:30]} Rxb8 {[%emt 0:00:30]} 15. Be3 {[%emt 0:00:00]} d6 {[%emt 0:00:30]} 16. Na4 {[%emt 0:05:00]} Bd7 {[%emt 0:15:30]} 17. Nb6 {[%emt 0:01:30]} Bc6 {[%emt 0:03:45]} 18. f3 {[%emt 0:00:00]} a5 {[%emt 0:03:21]} 19. a3 {[%emt 0:04:00]} a4 {[%emt 0:02:03]} 20. Bd1 {[%emt 0:04:41]} Ne5 {[%emt 0:01:35]} 21. Bxa4 {[%emt 0:06:04]} Bxa4 {[%emt 0:00:40]} 22. Nxa4 {[%emt 0:00:03]} Nxc4 {[%emt 0:00:00]} 23. Bf2 {[%emt 0:05:22]} b5 {[%emt 0:03:45]} 24. Nc3 {[%emt 0:01:18]} O-O {[%emt 0:01:39]} 25. b3 {[%emt 0:04:33]} Ne5 {[%emt 0:05:44]} 26. Rfd1 {[%emt 0:01:06]} Rfc8 {[%emt 0:02:02]} 27. Rac1 {[%emt 0:00:13]} Bg5 {[%emt 0:01:10]} 28. Rc2 {[%emt 0:00:05]} Rc6 {[%emt 0:00:00]} 29. h4 {[%emt 0:01:28]} Bf6 {[%emt 0:00:30]} 30. Bd4 {[%emt 0:00:59]} Rbc8 {[%emt 0:00:49]} 31. Rcc1 {[%emt 0:00:33]} Bxh4 {[%emt 0:00:53]} 32. f4 {[%emt 0:00:29]} Ng6 {[%emt 0:00:25]} 33. Ne2 {[%emt 0:00:29]} Rxc1 {[%emt 0:00:24]} 34. Rxc1 {[%emt 0:00:46]} Rxc1+ {[%emt 0:00:06]} 35. Nxc1 {[%emt 0:00:10]} Nxf4 {[%emt 0:00:03]} 36. a4 {[%emt 0:00:07]} bxa4 {[%emt 0:00:41]} 37. bxa4 {[%emt 0:00:30]} Bd8 {[%emt 0:00:00]} 38. Kf2 {[%emt 0:00:00]} Kf8 {[%emt 0:00:26]} 39. g3 {[%emt 0:00:00]} Ng6 {[%emt 0:00:30]} 40. Nb3 {[%emt 0:00:47]} Ne7 {[%emt 0:00:54]} 41. a5 {[%emt 0:01:14]} Nc8 {[%emt 0:01:07]} 42. Ke2 {[%emt 0:00:45]} Bc7 {[%emt 0:00:52]} 43. Kd3 {[%emt 0:00:22]} d5 {[%emt 0:00:25]} 44. exd5 {[%emt 0:01:11]} exd5 {[%emt 0:00:07]} 45. Bc5+ {[%emt 0:00:08]} Ke8 {[%emt 0:00:32]} 46. a6 {[%emt 0:00:24]} Bb6 {[%emt 0:00:55]} 47. Kd4 {[%emt 0:00:20]} Kd7 {[%emt 0:00:22]} 48. Kxd5 {[%emt 0:00:31]} Bxc5 {[%emt 0:00:41]} 49. Kxc5 {[%emt 0:00:37]} Kc7 {[%emt 0:00:26]} 50. Nd4 {[%emt 0:00:18]} Na7 {[%emt 0:00:20]} 51. Nf5 {[%emt 0:00:48]} g6 {[%emt 0:00:17]} 52. Nd6 {[%emt 0:00:26]} f5 {[%emt 0:00:28]} 53. Ne8+ {[%emt 0:00:19]} Kb8 {[%emt 0:00:33]} 54. Nf6 {[%emt 0:00:42]} h5 {[%emt 0:00:35]} 55. Kd6 {[%emt 0:00:38]} Nb5+ {[%emt 0:00:28]} 56. Ke5 {[%emt 0:00:19]} Nc3 {[%emt 0:00:43]} 57. Kf4 {[%emt 0:00:42]} Ne2+ {[%emt 0:00:14]} 58. Kf3 {[%emt 0:00:46]} Nd4+ {[%emt 0:00:13]} 59. Kf4 {[%emt 0:00:00]} Nc6 {[%emt 0:00:19]} 60. Nxh5 {[%emt 0:00:28]} 1/2-1/2

[Event "Turkish Second League 2019"]
[Site "Konya"]
[Date "2019.07.23"]
[Round "2"]
[White "Ilkbahar, Nimet Seray"]
[Black "Mustu, Hatice Asli"]
[Result "1-0"]
[ECO "B23"]
[WhiteElo "1531"]
[BlackElo "1679"]
[Annotator "NA"]
[PlyCount "81"]
[EventDate "2019.07.22"]
[EventType "team-tourn"]
[EventCountry "TUR"]
[SourceTitle "playchess.com"]
[Source "ChessBase"]
[SourceQuality "1"]
[TimeControl "5400+30"]

1. e4 c5 2. Nc3 a6 3. g3 b5 4. Bg2 Bb7 5. Nge2 e6 6. O-O d6 7. d3 Nf6 8. h3 Qc7 9. Be3 Be7 10. Qd2 O-O 11. f4 d5 12. e5 Nfd7 13. Bf2 Nb6 14. g4 b4 15. Nd1 N8d7 16. c3 {[%emt 0:57:00]} a5 17. Ng3 Rac8 18. Re1 Ba6 19. Nh5 g6 20. Ng3 Rfd8 21. Nf1 Bf8 22. Bg3 Bg7 23. Nf2 Re8 24. g5 Nb8 25. Ng4 Red8 26. Nf6+ Kh8 27. Bf2 N6d7 {[%emt 1:35:32]} 28. h4 {[%emt 0:00:00]} Nc6 {[%emt 0:01:04]} 29. h5 {[%emt 0:45:46]} Ne7 {[%emt 0:01:08]} 30. Re3 {[%emt 0:01:23]} Nf5 {[%emt 0:00:59]} 31. Rh3 {[%emt 0:00:14]} Bxf6 {[%emt 0:00:46]} 32. gxf6 {[%emt 0:00:34]} Nf8 {[%emt 0:00:56]} 33. Qd1 {[%emt 0:00:39]} Rb8 34. Ne3 Nxe3 35. Bxe3 {[%emt 0:01:03]} bxc3 36. bxc3 d4 37. cxd4 cxd4 38. Bf2 Bb7 39. Rc1 Qd7 40. Qg4 Bxg2 41. Qg5 1-0